[Event "ESP-ch Teams Honor 2024"]
[Site "Melilla"]
[Date "2024.10.14"]
[Round "3.17"]
[White "Macias Pino, Diego"]
[Black "Vega Gutierrez, Sabrina"]
[Result "1-0"]
[ECO "A13"]
[WhiteElo "2479"]
[BlackElo "2392"]
[Annotator "TA"]
[PlyCount "93"]
[EventDate "2024.10.11"]
[EventType "team-tourn"]
[EventCountry "ESP"]
[SourceTitle "playchess.com"]
[Source "ChessBase"]
[SourceQuality "1"]
[WhiteTeam "Andreu"]
[BlackTeam "Casablanca"]
[TimeControl "5400+30"]

{[%evp 14,93,50,35,32,36,83,61,53,4,58,-16,0,-20,37,19,121,99,144,83,151,0,162,107,46,75,121,111,92,100,108,-13,112,96,106,106,97,95,466,0,0,-119,-127,-96,-16,-185,0,0,139,139,139,138,145,167,167,0,140,150,177,170,170,196,196,212,197,142,149,100,127,101,161,142,157,153,259,114,415,122,174,125,1564,1451]} 1. Nf3 {[%emt 0:00:51]} Nf6 {[%emt 0:03:12]} 2. c4 {[%emt 0:00:12]} e6 {[%emt 0:00:51]} 3. g3 {[%emt 0:00:35]} d5 {[%emt 0:00:29]} 4. Bg2 {[%emt 0:00:05]} dxc4 {[%emt 0:06:48]} 5. Qa4+ {[%emt 0:00:36]} c6 {[%emt 0:17:09]} 6. Qxc4 {[%emt 0:00:10]} b5 {[%emt 0:00:05]} 7. Qc2 {[%emt 0:00:08]} Bb7 {[%emt 0:00:06]} 8. O-O {[%emt 0:03:58]} c5 {[%emt 0:05:59] A13: Engelse Opening: 1...e6.} 9. a4 {[%emt 0:02:59] OK} bxa4 $146 {[%emt 0:11:27] Fout (0.5)} (9... a6 $14) ({Predecessor:} 9... b4 10. d3 Nbd7 11. b3 Be7 12. Bb2 O-O 13. Nbd2 Rc8 14. Nc4 Nb6 15. Rad1 h6 16. e4 Nxc4 17. Qxc4 {1-0 Oparin,G (2652)-Le,Q (2709) PNWCC Online blitz JP 14th 2020 (10)}) 10. Nc3 {[%emt 0:18:44]} ({Veel slechter is} 10. Rxa4 Be7 $11) 10... Be7 {[%emt 0:01:03] OK. Wit staat iets beter.} 11. Rd1 {[%emt 0:08:47] voelt sterker. Fout (0.5)} (11. d3 $14) 11... O-O $11 {[%emt 0:03:41] Beste} 12. d4 {[%emt 0:02:02] Fout (0.7)} ({Maar niet} 12. Rxa4 Qb6 $11) (12. d3 $14) 12... Qc8 {[%emt 0:03:13]} 13. Rxa4 {[%emt 0:06:55]} cxd4 {[%emt 0:04:52] Fout (0.6)} (13... Na6 $11) 14. Rdxd4 $14 {[%emt 0:01:38]} Bc6 {[%emt 0:03:32] Houdt de partij in balans. Fout (1.0)} (14... Nbd7 $11) 15. Rac4 $1 $16 {[%emt 0:01:33] Sterk} Qb7 {[%emt 0:07:40] Onnauwkeurig} {Wit zou moeten proberen} 16. Rh4 {[%emt 0:01:47] Fout (0.6)} (16. Na4 $1) 16... Rc8 {[%emt 0:10:13] Fout (0.7)} (16... Nbd7) 17. e4 $2 {[%emt 0:17:48] Fout (1.5)} (17. Bg5 $1 $16 {[%cal Rg5f6]}) 17... g6 $2 {[%emt 0:00:09] en Zwart blijft veilig. Verliest partij (1.6)} (17... Nfd7 $11 18. Rg4 h5) 18. Bg5 {[%emt 0:07:01] Fout (0.6)} (18. Ne5 $1 $18) 18... Nbd7 {[%emt 0:02:18] [#] Beste} 19. Rxc6 $1 {[%emt 0:04:39] Briljant} Rxc6 {[%emt 0:00:08] Onnauwkeurig} 20. e5 {[%emt 0:00:10] Beste (Gemakkelijk)} Nd5 {[%emt 0:00:35][%cal Bf6d5,Bd5e7,Be7c6][%mdl 32] EV=16.50. Goes to e7 (dbg)). OK} 21. Bxe7 $1 {[%emt 0:01:25] Sterk} Nxe7 {[%emt 0:00:19]} 22. Nd4 {[%emt 0:02:06] [#] Fout (1.2)} (22. Ng5 $16) 22... Rac8 {[%emt 0:06:21] Fout (1.2)} 23. Nxc6 {[%emt 0:01:32] Beste (Gemakkelijk)} Nxc6 {[%emt 0:00:08]} 24. Qd2 $1 {[%emt 0:07:42] met als doel voor Qh6. Wit is actiever. Sterk} Ndxe5 {[%emt 0:03:34] Beste} 25. Ne4 $1 {[%emt 0:01:52] Sterk} Qb3 $2 {[%emt 0:05:52][%mdl 8192] is een betere kans. Verliest partij (3.7)} (25... Qe7 $16) {Wit moet spelen} 26. h3 $2 {[%emt 0:04:57] Gemiste overwinning (4.7)} (26. Nf6+ $18 Kf8 (26... Kg7 $2 27. Nxh7 $18) 27. Bxc6 (27. Nxh7+ Ke7 $16) 27... Nxc6 28. Rxh7 (28. Nxh7+ Ke7 $11)) 26... Rd8 {[%emt 0:01:05]} 27. Qf4 {[%emt 0:01:10] was de enige mogelijkheid om het evenwicht te handhaven. Fout (1.2)} (27. Nf6+ $11 Kg7 28. Qg5) 27... h5 $1 $17 {[%emt 0:01:32] Sterk} (27... Qxb2 28. Nf6+ Kf8 29. Nxh7+ (29. Rxh7 g5 $11) 29... Ke8 30. Ng5 $16) 28. Kh2 {[%emt 0:01:54] En nu zou Qh6 winnen. OK} Qxb2 {[%emt 0:01:36] Fout (0.8)} (28... f5 $1 $17 {[%cal Rf5e4]} 29. Nf6+ Kf7) 29. Qh6 $2 {[%emt 0:01:07] es Wit is oké. Verliest partij (1.7)} (29. Qg5 $1 $11) {Zwart zou moeten proberen} 29... f5 $2 {[%emt 0:00:31] Gemiste overwinning (1.9)} (29... Nd7 $19 {Sterke dreiging met ...a5.} 30. Qf4 Qb6) 30. Ng5 $40 {[%emt 0:00:26][%mdl 128] Qh7+ zou dodelijk zijn. Wit valt aan. OK} Qxf2 {[%emt 0:00:31] blijft gelijk. Fout (1.4)} (30... Rd7 $11) 31. Qh7+ $16 {[%emt 0:00:17] Beste (Gemakkelijk)} (31. Nxe6 $2 Nf3+ 32. Kh1 Qg1#) 31... Kf8 {[%emt 0:00:02] Hoopt vervolgens op ...Ke8.} 32. Nxe6+ {[%emt 0:00:22] Beste (Gemakkelijk)} Ke8 {[%emt 0:00:01]} 33. Nc7+ {[%emt 0:00:02][%mdl 1024] Wit heeft sterke compensatie.} Kf8 {[%emt 0:00:04] ( -> ...Nf3+)} 34. Ne6+ {[%emt 0:00:06] Beste (Gemakkelijk)} Ke8 {[%emt 0:00:01] Onnauwkeurig} 35. Rf4 {[%emt 0:01:29] Ontwijkt Nf3+. Erg scherp! OK} Qd2 {[%emt 0:01:24]} 36. Nc7+ {[%emt 0:00:08]} Kf8 {[%emt 0:00:02]} 37. Ne6+ {[%emt 0:00:05] Beste (Gemakkelijk)} Ke8 {[%emt 0:00:01]} 38. Qh8+ {[%emt 0:01:21]} Kf7 {[%emt 0:02:05] [#] Beste} {Wit zou moeten spelen} 39. Nxd8+ {[%emt 0:00:21] Fout (0.6)} (39. Ng5+ $1 $18 Ke7 40. Qg7+ Kd6 41. Qf6+ (41. Nf7+ Ke6 $16) 41... Kc7 42. Ne6+ Kb6 43. Nxd8 Qxd8 44. Qg7 (44. Rb4+ Kc5 $18)) 39... Qxd8 {[%emt 0:00:03]} {Beter is} 40. Qh7+ {[%emt 0:00:10] Fout (0.5)} (40. Qxd8 {Wit dreigt Bd5+ en mat.} Nxd8 41. Ra4) 40... Kf6 {[%emt 0:00:30] Beste} 41. Rf2 {[%emt 0:00:13]} Qd6 {[%emt 0:01:15] Fout (0.6)} (41... a5 $16) 42. Qh8+ $18 {[%emt 0:00:15] OK} Kf7 {[%emt 0:00:11] OK} 43. Rb2 {[%emt 0:00:32]} f4 {[%emt 0:00:51] Fout (1.1)} (43... Ne7 $16 44. Rb8 Ke6) 44. Rb7+ {[%emt 0:01:43] is de juiste voortzetting om te winnen. Fout (1.4)} (44. gxf4 $18 Nd7 45. Qh7+ Kf6 46. Qh8+ Kf7 47. Rf2) 44... Ne7 $2 {[%emt 0:00:07][%mdl 8192] [#] is moeilijk. Verliest partij (3.0)} (44... Nd7 $16 45. Rxd7+ (45. Qh7+ Ke8 $16) 45... Qxd7) 45. gxf4 $2 {[%emt 0:00:31] en de rest is makkelijk. Gemiste overwinning (2.9)} (45. Bd5+ $1 $18 Qxd5 46. Qh7+ (46. Rxa7 {wordt mat gezet.} Qd2+ 47. Kh1 Qe1+ 48. Kg2 f3+ 49. Kh2 Qf2+ 50. Kh1 Qg2#) 46... Kf6 47. Qxe7+ (47. Rxe7 {Leidt naar mat.} Nf3+ 48. Kg2 Nh4+ 49. Kf2 Qg2+ 50. Ke1 Nf3+ 51. Kd1 Qd2#) 47... Kf5 48. Qf8+ (48. Rxa7 {is een zelfmat.} Qd2+ 49. Kh1 Qe1+ 50. Kg2 f3+ 51. Kh2 Qf2+ 52. Kh1 Qg2#) 48... Ke4 49. Qxf4+ Kd3 50. Qf1+ (50. Rxa7 Nf3+ $11) 50... Kd4 51. Qd1+ (51. Rxa7 Nf3+ 52. Kh1 Nd2+ 53. Qg2 Qxg2+ 54. Kxg2 Ke5 $18) 51... Nd3 52. Rxa7) 45... N5c6 {[%emt 0:00:52] pakt misschien beter uit. Fout (0.5)} (45... Nd7 $16) 46. Qh6 {[%emt 0:00:20]} a5 $2 {[%emt 0:00:31][%mdl 8192] Verliest partij (14.4)} (46... Nd4 $16 47. Rxa7 Ndf5 48. Qh7+ Ng7) 47. Bxc6 {[%emt 0:00:18] Blunder waarde: Wit=0.51/Zwart=0.94. Beste.  Verliest partij:   	Wit=1      	Zwart=4      Gemiste overwinning: 	Wit=2      	Zwart=1      Fout:        	Wit=10     	Zwart=10     Onnauwkeurig:    	---       	Zwart=3      OK:         	Wit=5      	Zwart=3      Beste:        	Wit=7      	Zwart=5      Sterk:        	Wit=4      	Zwart=1      Briljant:      	Wit=1      	---} 1-0

[Event "ESP-ch Teams Honor 2024"]
[Site "Melilla"]
[Date "2024.10.14"]
[Round "3.18"]
[White "Quintin Navarro, Alberto"]
[Black "Vega Gutierrez, Belinda"]
[Result "1-0"]
[ECO "E11"]
[WhiteElo "2378"]
[BlackElo "2168"]
[Annotator "RC"]
[PlyCount "117"]
[EventDate "2024.10.11"]
[EventType "team-tourn"]
[EventCountry "ESP"]
[SourceTitle "playchess.com"]
[Source "ChessBase"]
[SourceQuality "1"]
[WhiteTeam "Casablanca"]
[BlackTeam "Andreu"]
[TimeControl "5400+30"]

1. Nf3 {[%emt 0:00:03]} d5 {[%emt 0:00:15]} 2. d4 {[%emt 0:00:06]} Nf6 {[%emt 0:00:20]} 3. c4 {[%emt 0:00:06]} e6 {[%emt 0:00:12]} 4. g3 {[%emt 0:00:05]} Bb4+ {[%emt 0:00:28]} 5. Bd2 {[%emt 0:00:51]} Be7 {[%emt 0:00:10]} 6. Bg2 {[%emt 0:00:05]} O-O {[%emt 0:00:16]} 7. O-O {[%emt 0:00:06]} c6 {[%emt 0:01:39]} 8. Qc2 {[%emt 0:00:30]} b6 {[%emt 0:00:34]} 9. b3 {[%emt 0:01:21]} Bb7 {[%emt 0:00:33]} 10. Rd1 {[%emt 0:00:27]} Nbd7 {[%emt 0:01:01]} 11. Nc3 {[%emt 0:00:12]} Rc8 {[%emt 0:04:51]} 12. e4 {[%emt 0:03:00]} dxe4 {[%emt 0:07:09]} 13. Nxe4 {[%emt 0:00:55]} c5 {[%emt 0:07:24]} 14. Nxf6+ {[%emt 0:00:44]} Nxf6 {[%emt 0:00:03]} 15. dxc5 {[%emt 0:02:49]} Be4 {[%emt 0:01:15]} 16. Qb2 {[%emt 0:01:48]} bxc5 {[%emt 0:01:27]} 17. Bf4 {[%emt 0:10:46]} Qb6 {[%emt 0:00:35]} 18. Ne5 {[%emt 0:00:34]} Bxg2 {[%emt 0:01:13]} 19. Kxg2 {[%emt 0:00:06]} Rfd8 {[%emt 0:01:15]} 20. Qe2 {[%emt 0:01:02]} a5 {[%emt 0:18:33]} 21. Qf3 {[%emt 0:01:25]} Rd4 {[%emt 0:06:46]} 22. g4 {[%emt 0:12:26]} h6 {[%emt 0:01:26]} 23. h4 {[%emt 0:03:03]} Bd6 {[%emt 0:08:00]} 24. Rxd4 {[%emt 0:07:33]} cxd4 {[%emt 0:00:12]} 25. c5 {[%emt 0:02:41]} Rxc5 {[%emt 0:22:46]} 26. Nc4 {[%emt 0:01:04]} Rxc4 {[%emt 0:00:06]} 27. bxc4 {[%emt 0:00:05]} e5 {[%emt 0:00:12]} 28. c5 {[%emt 0:06:39]} Qxc5 {[%emt 0:03:08]} 29. Rc1 {[%emt 0:00:46]} Qa7 {[%emt 0:03:26]} 30. Rc8+ {[%emt 0:11:23]} Kh7 {[%emt 0:00:36]} 31. Qc6 {[%emt 0:00:35]} Qe7 {[%emt 0:05:08]} 32. g5 {[%emt 0:06:26]} exf4 {[%emt 0:04:16]} 33. gxf6 {[%emt 0:00:09]} Qxf6 {[%emt 0:00:32]} 34. Qe4+ {[%emt 0:01:36]} g6 {[%emt 0:00:01]} 35. Qd5 {[%emt 0:07:25]} f3+ {[%emt 0:01:34]} 36. Qxf3 {[%emt 0:00:31]} Qxf3+ {[%emt 0:00:34]} 37. Kxf3 {[%emt 0:00:05]} Bb4 {[%emt 0:00:14]} 38. Ke4 {[%emt 0:02:51]} Be1 {[%emt 0:00:37]} 39. Ra8 {[%emt 0:01:10]} Kg7 {[%emt 0:00:36]} 40. f4 {[%emt 0:00:13]} Bc3 {[%emt 0:00:17]} 41. Ra6 {[%emt 0:02:37]} h5 {[%emt 0:00:45]} 42. Rc6 {[%emt 0:01:11]} Be1 {[%emt 0:00:19]} 43. Rc5 {[%emt 0:00:50]} Bxh4 {[%emt 0:00:31]} 44. Rxa5 {[%emt 0:00:10]} Be1 {[%emt 0:00:09]} 45. Rb5 {[%emt 0:00:59]} h4 {[%emt 0:00:54]} 46. Rb1 {[%emt 0:00:33]} f5+ {[%emt 0:00:36]} 47. Kxd4 {[%emt 0:01:32]} Bg3 {[%emt 0:00:34]} 48. Ke3 {[%emt 0:00:13]} g5 {[%emt 0:00:16]} 49. fxg5 {[%emt 0:00:16]} Kg6 {[%emt 0:00:04]} 50. Kf3 {[%emt 0:00:32]} Bc7 {[%emt 0:01:00]} 51. Rb7 {[%emt 0:00:48]} Ba5 {[%emt 0:00:05]} 52. Rb5 {[%emt 0:00:09]} Be1 {[%emt 0:00:23]} 53. a4 {[%emt 0:00:22]} h3 {[%emt 0:00:33]} 54. a5 {[%emt 0:01:41]} f4 {[%emt 0:01:06]} 55. a6 {[%emt 0:00:38]} h2 {[%emt 0:00:10]} 56. Kg2 {[%emt 0:00:04]} Bf2 {[%emt 0:00:51]} 57. Kxh2 {[%emt 0:00:43]} f3 {[%emt 0:00:20]} 58. Rb3 {[%emt 0:00:10]} Kxg5 {[%emt 0:00:16]} 59. Rxf3 {[%emt 0:00:07]} 1-0

[Event "ESP-ch Teams Honor 2024"]
[Site "Melilla"]
[Date "2024.10.14"]
[Round "3.19"]
[White "Aravindh, Chithambaram VR."]
[Black "Fedoseev, Vladimir"]
[Result "1/2-1/2"]
[ECO "D31"]
[WhiteElo "2698"]
[BlackElo "2698"]
[Annotator "TA"]
[PlyCount "56"]
[EventDate "2024.10.11"]
[EventType "team-tourn"]
[EventCountry "ESP"]
[SourceTitle "playchess.com"]
[Source "ChessBase"]
[SourceQuality "1"]
[WhiteTeam "Solvay"]
[BlackTeam "Costa Calida"]
[TimeControl "5400+30"]

{[%evp 9,56,36,32,39,39,32,33,34,17,14,12,24,20,10,0,10,39,20,72,69,64,43,46,29,39,40,39,38,47,28,50,34,53,20,22,27,79,85,91,58,49,0,0,0,51,0,0,0,48]} 1. d4 {[%emt 0:00:06]} d5 {[%emt 0:00:58]} 2. c4 {[%emt 0:00:11]} e6 {[%emt 0:01:17]} 3. Nc3 {[%emt 0:00:14]} h6 {[%emt 0:03:56]} 4. Nf3 {[%emt 0:00:50]} Nf6 {[%emt 0:00:08]} 5. g3 {[%emt 0:00:21]} Bd6 {[%emt 0:01:24]} 6. Bg2 {[%emt 0:00:12]} Nc6 {[%emt 0:00:16]} 7. O-O {[%emt 0:00:22]} O-O {[%emt 0:00:08]} 8. Qd3 {[%emt 0:01:11] White is slightly better.} Nb4 {[%emt 0:00:34]} 9. Qd2 {[%emt 0:00:10]} dxc4 {[%emt 0:02:16]} 10. Ne5 {[%emt 0:00:32]} Bxe5 {[%emt 0:06:55]} 11. dxe5 {[%emt 0:00:06]} Nfd5 {[%emt 0:00:20]} 12. Rd1 {[%emt 0:01:27][%cal Rc3d5]} Nc6 {[%emt 0:13:59]} 13. Qe1 {[%emt 0:11:53] [#] e4 would now be deadly.} Bd7 {[%emt 0:16:34]} (13... Nxe5 $11 {remains equal.} 14. e4 Nd3 15. Rxd3 cxd3 16. exd5 Re8) 14. Nxd5 $16 {[%emt 0:30:28]} exd5 {[%emt 0:00:06]} 15. Bxd5 {[%emt 0:00:06]} Qe7 {[%emt 0:04:10]} 16. Qc3 {[%emt 0:01:46]} Be6 {[%emt 0:05:46]} 17. Bxc6 {[%emt 0:06:17]} bxc6 {[%emt 0:00:07] Black is weak on the dark squares} 18. Be3 {[%emt 0:01:04][%cal Bc1e3,Be3d4,Bd4c3,Bc3a5][%mdl 32]} a5 {[%emt 0:08:06]} 19. Bd4 {[%emt 0:04:08]} Rfd8 {[%emt 0:03:59]} 20. Qe3 {[%emt 0:09:09]} Rd5 {[%emt 0:02:32]} 21. Rd2 {[%emt 0:01:35]} a4 {[%emt 0:02:01]} 22. a3 {[%emt 0:00:46]} c5 {[%emt 0:05:22]} (22... Rad8 $11) 23. Bc3 {[%emt 0:00:12]} c6 {[%emt 0:00:05]} 24. Rad1 {[%emt 0:04:34]} Rad8 {[%emt 0:00:19]} 25. Ba5 {[%emt 0:01:05]} Rb8 {[%emt 0:02:48][%cal Ob8b2] [#] Threatens to win with ...Rxb2!} 26. Bc3 {[%emt 0:01:33]} Rbd8 $1 {[%emt 0:00:16]} 27. Ba5 {[%emt 0:06:10]} Rb8 {[%emt 0:02:42][%cal Ob8b2] Strongly threatening ...Rxb2!} 28. Bc3 {[%emt 0:01:12]} Rbd8 $1 {Weighted Error Value: White=0.12 (very precise) /Black=0.09 (flawless) .  Mistake:       	---       	Black=2      Inaccurate:     	White=2     	Black=1      OK:         	White=9     	Black=13     Best:        	White=1     	---        Strong:       	---       	Black=2} 1/2-1/2

[Event "ESP-ch Teams Honor 2024"]
[Site "Melilla"]
[Date "2024.10.14"]
[Round "3.20"]
[White "Deac, Bogdan-Daniel"]
[Black "Ivanchuk, Vasyl"]
[Result "1-0"]
[ECO "D91"]
[WhiteElo "2691"]
[BlackElo "2632"]
[Annotator "TA"]
[PlyCount "83"]
[EventDate "2024.10.11"]
[EventType "team-tourn"]
[EventCountry "ESP"]
[SourceTitle "playchess.com"]
[Source "ChessBase"]
[SourceQuality "1"]
[WhiteTeam "Costa Calida"]
[BlackTeam "Solvay"]
[TimeControl "5400+30"]

{[%evp 25,83,31,20,12,35,0,0,-36,0,0,0,0,0,0,0,-2,-6,-25,0,0,0,0,0,-8,-7,-6,-11,-5,-8,-15,26,25,33,25,29,8,24,8,8,8,29,29,29,29,29,30,42,41,56,56,56,56,56,56,72,78,79,79,79,39]} 1. d4 {[%emt 0:00:03]} Nf6 {[%emt 0:00:33]} 2. c4 {[%emt 0:00:05]} g6 {[%emt 0:00:13]} 3. Nc3 {[%emt 0:01:10]} d5 {[%emt 0:00:35]} 4. Nf3 {[%emt 0:11:33]} Bg7 {[%emt 0:00:13]} 5. Bg5 {[%emt 0:00:18]} Ne4 {[%emt 0:02:20]} 6. Bf4 {[%emt 0:00:24]} Nxc3 {[%emt 0:02:04]} 7. bxc3 {[%emt 0:00:08]} c5 {[%emt 0:00:11]} 8. e3 {[%emt 0:02:33]} O-O {[%emt 0:01:32]} 9. cxd5 {[%emt 0:08:09]} Qxd5 {[%emt 0:04:55]} 10. Be2 {[%emt 0:00:20]} cxd4 {[%emt 0:06:44]} 11. cxd4 {[%emt 0:01:46]} Qa5+ {[%emt 0:00:05]} 12. Qd2 {[%emt 0:00:17]} Qxd2+ {[%emt 0:00:04]} 13. Kxd2 {[%emt 0:11:04]} Nc6 {[%emt 0:00:25]} 14. Rhc1 {[%emt 0:20:02]} Rd8 {[%emt 0:07:43]} 15. Ke1 {[%emt 0:01:21]} (15. Bd3 {with more complications.} Nb4 16. Be4 f5 17. Bb1) 15... Bf5 {[%emt 0:00:09] Dodges Rab1} 16. Nh4 {[%emt 0:01:11] [#] Nxf5 is the strong threat. The position is equal.} Bc8 {[%emt 0:00:22]} 17. Nf3 {[%emt 0:05:58]} Bf5 {[%emt 0:00:28] Dodges Rab1} 18. Nh4 {[%emt 0:12:41] Black must now prevent Nxf5.} Be4 {[%emt 0:50:24]} 19. Bf3 {[%emt 0:02:35]} f5 {[%emt 0:00:06] Black wants to play ...Bf6.} 20. Bxe4 {[%emt 0:03:23]} fxe4 {[%emt 0:01:08]} 21. Rab1 {[%emt 0:00:03] Dodges Nb4} Bf6 {[%emt 0:00:06]} 22. Rxb7 {[%emt 0:02:57] [#] Nxg6 would now be deadly.} Rdc8 $1 {[%emt 0:00:07]} 23. g3 {[%emt 0:02:27]} g5 {[%emt 0:01:23]} 24. Nf5 {[%emt 0:01:10][%cal Bh4f5,Bf5g3,Bg3e4,Be4c3][%mdl 32]} ({Not} 24. d5 $2 Nb4 25. Rxc8+ Rxc8 26. Bxg5 Nd3+ (26... Nxd5 $2 {is the wrong capture.} 27. Bxf6 Nxf6 28. Rxe7 $18) 27. Kd2 Bxg5 $19) 24... gxf4 {[%emt 0:00:22]} 25. gxf4 {[%emt 0:00:05]} a5 {[%emt 0:03:02]} 26. a3 {[%emt 0:00:06] Inhibits Nb4.} a4 {[%emt 0:02:50]} 27. Ng3 {[%emt 0:02:09]} Bxd4 {[%emt 0:12:39]} 28. exd4 {[%emt 0:00:22]} Nxd4 {[%emt 0:00:00]} 29. Rxc8+ {[%emt 0:00:50]} Rxc8 {[%emt 0:00:01]} 30. Nxe4 $11 {[%emt 0:00:37][%mdl 4096] Endgame. KRN-KRN} Kf8 {[%emt 0:02:13]} 31. Kd2 {[%emt 0:01:12]} Nc2 {[%emt 0:01:13] Wards off Rb4} 32. Kd3 {[%emt 0:06:26]} Nxa3 {[%emt 0:00:31]} 33. Rb4 {[%emt 0:00:17]} Rd8+ {[%emt 0:01:24]} 34. Ke2 {[%emt 0:00:06]} Ra8 {[%emt 0:00:32]} 35. Nc3 {[%emt 0:00:43]} Nc2 {[%emt 0:00:27]} 36. Rxa4 {[%emt 0:00:04]} Rxa4 {[%emt 0:00:04]} 37. Nxa4 $14 {[%emt 0:00:01] KN-KN} Nd4+ {[%emt 0:01:14]} 38. Ke3 {[%emt 0:00:06]} Nf5+ {[%emt 0:00:18]} 39. Ke4 {[%emt 0:00:03]} Nd6+ {[%emt 0:00:06]} 40. Ke5 {[%emt 0:00:08] White is better.} Kf7 {[%emt 0:00:15]} 41. Nb6 {[%emt 0:00:22]} Nb7 42. Ke4 {Weighted Error Value: White=0.05 (flawless) /Black=0.08 (flawless) .  Inaccurate:     	White=3     	Black=2      OK:         	White=13    	Black=12     Best:        	White=2     	Black=1      Strong:       	---       	Black=1} 1-0

[Event "ESP-ch Teams Honor 2024"]
[Site "Melilla"]
[Date "2024.10.14"]
[Round "3.21"]
[White "Henderson de La Fuente, Lance"]
[Black "Ibarra Jerez, Jose Carlos"]
[Result "1/2-1/2"]
[ECO "D27"]
[WhiteElo "2525"]
[BlackElo "2559"]
[Annotator "TA"]
[PlyCount "77"]
[EventDate "2024.10.11"]
[EventType "team-tourn"]
[EventCountry "ESP"]
[SourceTitle "playchess.com"]
[Source "ChessBase"]
[SourceQuality "1"]
[WhiteTeam "Solvay"]
[BlackTeam "Costa Calida"]
[TimeControl "5400+30"]

{[%evp 15,77,24,25,29,42,18,33,37,43,34,81,31,25,34,44,0,0,0,30,27,28,0,0,0,0,0,0,0,0,0,8,18,77,0,0,-15,96,98,91,92,83,75,125,152,169,116,112,107,113,109,107,81,72,0,97,87,89,78,67,68,72,66,102,77]} 1. d4 {[%emt 0:00:37]} d5 {[%emt 0:00:22]} 2. Nf3 {[%emt 0:00:30]} Nf6 {[%emt 0:00:37]} 3. c4 {[%emt 0:00:21]} dxc4 {[%emt 0:00:54]} 4. e3 {[%emt 0:00:58]} e6 {[%emt 0:00:45]} 5. Bxc4 {[%emt 0:00:49]} c5 {[%emt 0:00:32]} 6. O-O {[%emt 0:01:22]} a6 {[%emt 0:00:42]} 7. dxc5 {[%emt 0:02:39]} Bxc5 {[%emt 0:01:45]} 8. Qxd8+ {[%emt 0:01:42]} Kxd8 {[%emt 0:00:11]} 9. Be2 {[%emt 0:00:59]} Ke7 {[%emt 0:01:49]} 10. Nfd2 {[%emt 0:04:29]} Nbd7 {[%emt 0:08:38]} 11. Nb3 {[%emt 0:00:40] White is slightly better.} Bd6 {[%emt 0:05:59]} 12. N1d2 {[%emt 0:06:53]} Nc5 {[%emt 0:05:22]} (12... Nb6 $14) 13. Nxc5 {[%emt 0:02:56]} (13. Na5 $1 $16) 13... Bxc5 $14 {[%emt 0:02:22]} 14. Nb3 {[%emt 0:00:16]} Bd6 {[%emt 0:04:43]} 15. Bf3 {[%emt 0:04:14]} e5 {[%emt 0:04:26]} 16. Bd2 {[%emt 0:04:17][%cal Bc1d2,Bd2c3,Bc3b2][%mdl 32]} e4 {[%emt 0:02:36]} 17. Be2 {[%emt 0:00:12]} Bg4 {[%emt 0:01:36]} 18. Bxg4 {[%emt 0:06:44]} Nxg4 {[%emt 0:00:31]} 19. h3 {[%emt 0:00:07]} Ne5 {[%emt 0:01:36]} 20. Rad1 {[%emt 0:01:38]} Rhd8 {[%emt 0:04:01]} 21. Bc3 {[%emt 0:02:00]} Rac8 {[%emt 0:07:26]} 22. Rd5 $36 {[%emt 0:16:32][%mdl 2048] White is more active.} f6 {[%emt 0:05:59]} 23. Rfd1 {[%emt 0:02:24]} Nd3 {[%emt 0:14:20]} (23... Nc4 $11) 24. Rh5 {[%emt 0:00:52]} ({White should try} 24. Rd4 $1 $16 {[%cal Rd4e4]} f5 25. f3) 24... Kf7 $11 {[%emt 0:07:15]} 25. Rxh7 {[%emt 0:05:16] [#]} Nxb2 {[%emt 0:02:40]} 26. Bxb2 $16 {[%emt 0:00:42] And now Nd4 would win.} Bh2+ {[%emt 0:00:05]} 27. Kxh2 {[%emt 0:00:05]} Rxd1 {[%emt 0:00:04]} 28. Bd4 {[%emt 0:01:22]} Rc2 {[%emt 0:01:55]} (28... b6 $142) 29. Nc5 {[%emt 0:01:37]} Kg8 {[%emt 0:02:30] Against Nxe4} 30. Rh5 {[%emt 0:02:03]} ({White should play} 30. Rh4 $18) 30... Rxf2 {[%emt 0:00:19]} 31. Nxe4 {[%emt 0:00:37]} Rc2 {[%emt 0:00:58][%cal Ob7b5]} 32. Rd5 {[%emt 0:00:48]} Re1 {[%emt 0:01:18]} 33. Ng3 {[%emt 0:04:57] Against Ree2. Strongly threatening Rd7.} Rd1 {[%emt 0:00:15]} 34. Ne4 {[%emt 0:03:19] Dodges Rdd2} Re1 $1 {[%emt 0:00:11][%cal Oe1e2]} 35. Rd8+ {[%emt 0:03:09]} Kh7 {[%emt 0:00:10]} 36. Rd7 {[%emt 0:00:46][%csl LRb7,LRf6]} Ree2 {[%emt 0:02:31]} 37. Kg3 {[%emt 0:05:32]} (37. Nxf6+ Kg6 38. Ne4 Rxg2+ 39. Kh1 Rh2+ 40. Kg1 Rcg2+ 41. Kf1 Rc2 42. Rxg7+ Kf5 43. Ng3+ Ke6 $11) ({Much worse is} 37. Bxf6 Rxg2+ 38. Kh1 Rxa2 $11) 37... Rxg2+ {[%emt 0:00:06] [#]} 38. Kf4 $1 {[%emt 0:00:16]} Kg6 {[%emt 0:01:28]} 39. a4 {[%emt 0:02:09] Weighted Error Value: White=0.14 (very precise) /Black=0.16 (very precise) .  Mistake:       	White=3     	Black=4      Inaccurate:     	White=2     	Black=2      OK:         	White=7     	Black=9      Best:        	White=4     	Black=6      Strong:       	White=1     	Black=1} (39. Rxb7 Rxa2 40. Nc5 Kh6) 1/2-1/2